Cogmind - Beta 16 @@@ ROGUE MODE // 2025.12.21 @ 23:40:26 Player: emory Result: Destroyed by Y-45 Defender with Beam Rifle Performance ------------- Evolutions (2) 1000 Regions Visited (3) 600 Robots Destroyed (0) 0 Value Destroyed (0) 0 Prototype IDs (0) 0 Alien Tech Used (0) 0 Bonus (470) 470 TOTAL SCORE: 2070 Bonus ------- Pacifist 470 Cogmind --------- Core Integrity 0/550 Matter 157/300 Energy 100/100 System Corruption 0% Temperature Cool (9) Movement Core (50) Location -8/Materials Parts ------- > --- POWER (2) -------- (None) > --- PROPULSION (3) --- (None) > --- UTILITY (3) ------ (None) > --- WEAPON (3) ------- (None) > --- INVENTORY (5) ---- Nuclear Core Armored Treads Hardened Medium Armor Plating Peak State ------------ > --- POWER ------------ Nuclear Core > --- PROPULSION ------- Armored Treads > --- UTILITY ---------- Improved Heat Sink Hardened Medium Armor Plating > --- WEAPON ----------- (None) > --- INVENTORY -------- (None) [Rating: 12] Favorites ----------- Power Nuclear Core Power Core Nuclear Core Propulsion Armored Treads Treads Armored Treads Utility Hardened Medium Armor Plating Device Improved Heat Sink Protection Hardened Medium Armor Plating Weapon None Build | -11 -10 -9 -8 ------- Run | Yrd Mat Mat Mat Slots Evolved 4 | . . 2 2 Power 1 | . . . 1 Propulsion 1 | . . 1 . Utility 1 | . . 1 . Weapon 1 | . . . 1 Parts Attached 4 | . . . 4 Power 1 | . . . 1 Engine . | . . . . Core 1 | . . . 1 Reactor . | . . . . Propulsion 1 | . . . 1 Treads 1 | . . . 1 Leg . | . . . . Wheel . | . . . . Hover . | . . . . Flight . | . . . . Utility 2 | . . . 2 Device 1 | . . . 1 Storage . | . . . . Processor . | . . . . Hackware . | . . . . Protection 1 | . . . 1 Artifact . | . . . . Weapon . | . . . . Energy Gun . | . . . . Energy Cannon . | . . . . Ballistic Gun . | . . . . Ballistic Cannon . | . . . . Launcher . | . . . . Special Weapon . | . . . . Impact Weapon . | . . . . Slashing Weapon . | . . . . Piercing Weapon . | . . . . Special Melee Weapon . | . . . . Unidentified Prototypes . | . . . . Parts Lost 1 | . . . 1 Power . | . . . . Propulsion . | . . . . Utility 1 | . . . 1 Weapon . | . . . . Highest Loss Streak 1 | . . . 1 To Critical Strikes . | . . . . Average Backups . | . . . 1 Power . | . . . . Propulsion . | . . . . Utility . | . . . . Weapon . | . . . . Tool/Special . | . . . . Unused Backups . | . . . . Power . | . . . . Propulsion . | . . . . Utility . | . . . . Weapon . | . . . . Tool/Special . | . . . . Average Slot Usage (%) 6 | . . . 12 Core 1 | . . . 3 Treads 1 | . . . 3 Device 1 | . . . 2 Protection 1 | . . . 3 Peak Build Rating 12 | . . . 12 Average Rating 2 | . . . 4 On Entrance . | . . . . Avg Prop Armor Cover (%) . | . . . . Naked Turns 217 | . 36 88 93 Heaviest Build 16 | . . . 16 Greatest Support 20 | 3 3 3 20 Greatest Overweight (x) . | . . . . Average Overweight (x) . | . . . . Largest Inventory Capacity 5 | 5 5 5 5 Average Capacity 5 | 5 5 5 5 Most Carried 4 | . . . 4 Average Carried . | . . . 1 Final Capacity 5 | 5 5 5 5 Final Carried 3 | . . . 3 Class Distribution -------------------- 100% | Mutant Dominant Class ---------------- Mutant | -10/Materials Mutant | -9/Materials Mutant | -8/Materials Resources | -11 -10 -9 -8 ----------- Run | Yrd Mat Mat Mat Matter Collected 78 | 78 . . . Remotely . | . . . . Salvage Created . | . . . . Parts . | . . . . Haulers Intercepted . | . . . . Recyclers Shooed . | . . . . Parts Field Recycled . | . . . . Retrieved Matter . | . . . . Parts Self-Destructed . | . . . . Prevented . | . . . . Parts Restored . | . . . . Kills | -11 -10 -9 -8 ------- Run | Yrd Mat Mat Mat Combat Hostiles Destroyed . | . . . . Classes Destroyed . | . . . . Best Kill Streak . | . . . . Combat Bots Only . | . . . . Max Kills in Single Turn . | . . . . Gunslinging . | . . . . Exploded . | . . . . Melee . | . . . . Uniques/NPCs Destroyed . | . . . . Combat | -11 -10 -9 -8 -------- Run | Yrd Mat Mat Mat Hostile Shots Fired 125 | . 27 16 82 Missed 41 | . 9 7 25 Hits 84 | . 18 9 57 Projectile 84 | . 18 9 57 Critical Strikes 4 | . . . 4 Damage Taken 1021 | . 150 74 797 Core 780 | . 150 74 556 Absorbed by Shields . | . . . . Core Remaining (%) 73 | 100 40 81 . Volleys Fired . | . . . . Largest . | . . . . Hottest . | . . . . Shots Fired . | . . . . Gun . | . . . . Cannon . | . . . . Launcher . | . . . . Special . | . . . . Kinetic . | . . . . Thermal . | . . . . Explosive . | . . . . Electromagnetic . | . . . . Robot Hit Streak . | . . . . Robot Miss Streak . | . . . . Penetration Max . | . . . . Secondary Targets . | . . . . Shots Hit Robots . | . . . . Core Hits . | . . . . Critical Kills . | . . . . Critical Parts Destroyed . | . . . . Critical Strikes . | . . . . Melee Attacks . | . . . . Impact . | . . . . Slashing . | . . . . Piercing . | . . . . Sneak Attacks . | . . . . Combat Hostiles . | . . . . Follow-up Attacks . | . . . . Damage Inflicted 11 | . . . 11 Guns . | . . . . Cannons . | . . . . Explosions . | . . . . Melee . | . . . . Ramming 11 | . . . 11 Kinetic . | . . . . Thermal . | . . . . Explosive . | . . . . Electromagnetic . | . . . . Impact . | . . . . Slashing . | . . . . Piercing . | . . . . Highest Corruption . | . . . . Average Corruption . | . . . . Corruption Purged . | . . . . Corruption Blocked . | . . . . Overload Shots . | . . . . Overflow Damage . | . . . . Projectiles . | . . . . Explosions . | . . . . Melee . | . . . . Knockbacks . | . . . . Impact . | . . . . Kinetic . | . . . . Secondary . | . . . . Self-Inflicted Damage 2 | . . . 2 Shots . | . . . . Rammed 4 | . . . 4 Targets Rammed 4 | . . . 4 Kicked . | . . . . Crushed . | . . . . Highest Temperature 17 | . . . 17 Average Temperature 9 | . . . 9 Received Heat Transfer 381 | . 24 6 351 Siege Activations . | . . . . Martial Activations . | . . . . Shielding Activations . | . . . . Robots Disrupted . | . . . . Combat Hostiles . | . . . . Robots Corrupted . | . . . . Combat Hostiles . | . . . . Parts Fried . | . . . . Impact Corruptions . | . . . . Robots Melted . | . . . . Combat Hostiles . | . . . . Parts Melted . | . . . . Heat Transferred . | . . . . Parts Sabotaged . | . . . . Parts Stolen . | . . . . Parts Stripped . | . . . . Power Chain Reactions . | . . . . Alert | -11 -10 -9 -8 ------- Run | Yrd Mat Mat Mat Maximum Alert Level . | . . . . Low Security (%) 100 | 100 100 100 100 Level 1 . | . . . . Level 2 . | . . . . Level 3 . | . . . . Level 4 . | . . . . Level 5 . | . . . . High Security . | . . . . Max Security . | . . . . Peak Influence 145 | . . 55 145 Initial 22 | . . . 22 Average 26 | . . 14 41 Influence Increases 275 | . . 80 195 Successful Hack 5 | . . 5 . Lose Combat Pursuer 270 | . . 75 195 Influence Decreases 130 | . . 25 105 Entered New Map 33 | . . . 33 Time Decay 87 | . . 25 62 Lost Part 10 | . . . 10 Squads Dispatched 2 | . 1 . 1 Investigation . | . . . . Extermination . | . . . . Reinforcement 2 | . 1 . 1 Assault . | . . . . Garrison . | . . . . Intercept . | . . . . Searches Triggered . | . . . . Construction Impeded . | . . . . Haulers Reinforced . | . . . . Active Scanning Responses . | . . . . Cargo Convoy Interrupts . | . . . . Stealth | -11 -10 -9 -8 --------- Run | Yrd Mat Mat Mat Distress Signals 1 | . . . 1 Communications Jammed . | . . . . Distress Signals . | . . . . Times Spotted 39 | . 8 7 24 Peak Tracking Total 19 | . 7 6 19 Tactical Retreats 5 | . . 2 3 Traps | -11 -10 -9 -8 ------- Run | Yrd Mat Mat Mat Traps Triggered . | . . . . Indirectly . | . . . . Trap Hack Attempts . | . . . . Triggered . | . . . . Disarmed . | . . . . Reprogrammed . | . . . . Reused . | . . . . Traps Extracted . | . . . . Installed . | . . . . Triggered . | . . . . Machines | -11 -10 -9 -8 ---------- Run | Yrd Mat Mat Mat Machines Disabled . | . . . . Max in Single Turn . | . . . . Machines Repaired . | . . . . Machines Dismantled . | . . . . Machines Sabotaged . | . . . . Overloaded Fab Kills . | . . . . Hacking | -11 -10 -9 -8 --------- Run | Yrd Mat Mat Mat Machines Accessed 4 | . 1 3 . Terminals 4 | . 1 3 . Fabricators . | . . . . Repair Stations . | . . . . Recycling Units . | . . . . Scanalyzers . | . . . . Garrison Access . | . . . . Total Hacks 6 | . 2 4 . Successful 3 | . . 3 . Failed 3 | . 2 1 . Catastrophic . | . . . . Database Lockouts . | . . . . Manual . | . . . . Terminals 6 | . 2 4 . Fabricators . | . . . . Repair Stations . | . . . . Recycling Units . | . . . . Scanalyzers . | . . . . Garrison Access . | . . . . Terminal Hacks 3 | . . 3 . Zone Layout 3 | . . 3 . Fabricator Hacks . | . . . . Repair Station Hacks . | . . . . Recycling Unit Hacks . | . . . . Scanalyzer . | . . . . Garrison Access Hacks . | . . . . Unauthorized Hacks . | . . . . Terminals . | . . . . Fabricators . | . . . . Repair Stations . | . . . . Recycling Units . | . . . . Scanalyzers . | . . . . Garrison Access . | . . . . Data Cores Recovered . | . . . . Used . | . . . . Hacking Detections 2 | . 1 1 . Full Trace Events 1 | . 1 . . Feedback Events . | . . . . Feedback Blocked . | . . . . Robot Schematics Acquired . | . . . . Robots Built . | . . . . Authchips . | . . . . Time . | . . . . Total Robot Build Rating . | . . . . Part Schematics Acquired . | . . . . Parts Built . | . . . . Authchips . | . . . . Time . | . . . . Total Part Build Rating . | . . . . Part Studies Acquired . | . . . . Parts Repaired . | . . . . Time . | . . . . Parts Recycled . | . . . . Recycled Matter . | . . . . Retrieved Matter . | . . . . Retrieved Components . | . . . . Parts Scanalyzed . | . . . . Part Schematics Acquired . | . . . . Parts Damaged . | . . . . Bothacking | -11 -10 -9 -8 ------------ Run | Yrd Mat Mat Mat Used RIF Installer . | . . . . Robots Hacked . | . . . . Non-combat . | . . . . Combat . | . . . . Robot Hacks Applied . | . . . . Relay Couplers Released . | . . . . Fabnet Peak Effective % . | . . . . Robots Rewired . | . . . . Allies Hacked . | . . . . Hacks Repelled . | . . . . Allies | -11 -10 -9 -8 -------- Run | Yrd Mat Mat Mat Total Allies . | . . . . Largest Group . | . . . . Highest-Rated Group . | . . . . Highest-Rated Ally . | . . . . Total Orders . | . . . . Ally Attacks . | . . . . Total Damage . | . . . . Kills . | . . . . Allies Corrupted . | . . . . Allies Melted . | . . . . Intel | -11 -10 -9 -8 ------- Run | Yrd Mat Mat Mat Active Infowar (turns) . | . . . . Robot Analysis Total . | . . . . Derelict Logs Recovered . | . . . . Drone Launches . | . . . . Drone Recoveries . | . . . . Exploration | -11 -10 -9 -8 ------------- Run | Yrd Mat Mat Mat Turns Passed 286 | 10 36 88 152 Spaces Moved 468 | 20 71 175 202 Core 439 | 20 71 175 173 Treads 29 | . . . 29 Legs . | . . . . Wheels . | . . . . Hover . | . . . . Flight . | . . . . Fastest Speed 50 | 50 50 50 50 Average Speed 57 | 50 50 50 67 Slowest Speed 170 | 50 50 50 170 Overloaded Moves . | . . . . Propulsion Burnouts . | . . . . Robots Hopped . | . . . . Potential Cave-ins . | . . . . Cave-ins Triggered . | . . . . Exploration Rate (%) 22 | 3 23 32 32 Regions Visited 3 Branch Regions . Pre-discovered Areas . | . . . . Known Exits Taken . | . . . . Unknown Exits Taken 3 | 1 1 1 . Scrap Searched . | . . . . Spaces Dug . | . . . . Terrain Destroyed . | . . . . Melee . | . . . . Projectile . | . . . . AOE . | . . . . Terrain Rammed . | . . . . Walls Destroyed . | . . . . Machines Disabled . | . . . . Actions | -11 -10 -9 -8 --------- Run | Yrd Mat Mat Mat Total 480 | 19 70 174 217 Wait . | . . . . Move 465 | 19 70 174 202 Hop . | . . . . Pick Up 4 | . . . 4 Fast Attach . | . . . . Attach 4 | . . . 4 Detach 3 | . . . 3 Swap . | . . . . Drop . | . . . . Fire . | . . . . Melee . | . . . . Ram 1 | . . . 1 Kick . | . . . . Crush 3 | . . . 3 Escape Stasis . | . . . . Rewire . | . . . . Trap . | . . . . Miscellaneous . | . . . . Route ------- -11/Scrapyard -10/Materials -9/Materials -8/Materials History --------- Turn | Location | Event 4 | -11/Scrapyard | Discovered new exit (range 15) 11 | -11/Scrapyard | Entered Materials 38 | -10/Materials | Discovered new exit (range 16) 46 | -10/Materials | Core integrity fell below 50% 47 | -10/Materials | Entered another Materials area 47 | -9/Materials | Evolved 2 slots: Propulsion x1, Utility x1 131 | -9/Materials | Discovered new exit (range 7) 135 | -9/Materials | Entered another Materials area 135 | -8/Materials | Evolved 2 slots: Power x1, Weapon x1 243 | -8/Materials | Core integrity fell below 50% 273 | -8/Materials | Core integrity fell below 20% 287 | -8/Materials | Destroyed by Y-45 Defender with Beam Rifle Last Messages --------------- 00159_ Acquired Hrd. Medium Armor Plating. 00162_ Acquired Arm. Treads. 00164_ Acquired Nuclear Core. 00208_ Slammed into G-50 Soldier. 00209_ Slammed into G-47 Trooper. 00210_ Imp. Heat Sink destroyed. 00211_ Slammed into G-47 Trooper. 00212_ Critical hit (Burn: +37). 00238_ K-01 Serf collects debris. 00241_ Connecting with Terminal... 00241_ Current location identified: Materials 00251_ Critical hit (Burn: +37). 00258_ ALERT: Hostiles spotted, dispatching reinforcements to Terminal M006. 00259_ W-25 Informer sends out distress signal. 00260_ Critical hit (Burn: +37). 00264_ K-01 Serf collects debris. 00272_ Slammed into K-01 Serf. 00286_ T-07 Excavator is excavating. 00286_ Slug penetrates Wall. Map ----- +----------------------------------------------------+ | #######+####????????????????? | | ????????????????? | | ????????????????? | | ????????????????? | | #### ########????????????????????? | | #??# #???????????????????????????? | | #??# #????????????#######????????? | | #??# ############## #????????? | | #??# #????????? | | #??# #????????? | | #??# #????????? | | #??#######+######/### % #????????? | | #??????# ## ### ###????????? | | ???????# """ ##] #?# #??????????? | | ???????# """ ## !#?# #??????????? | | ???????# """ ## ?# #####??????? | | ????????# ## ### [[#??????? | | ????????# """ ##[[/ #?# [[#??????? | | ????????# """ ##[/ ??# [[#??????? | | ????????# """ ##[/ !??# [[#??????? | | ??????????? ## #?# !!#??????? | | ???????????[]] #######?# !!#??????? | | ????????????] #???????# #####??????? | | ????????????] #???????# ##?????????? | | ???????????? #???????# ;#?????????? | | ????????????####???????# @#?????????? | | ???????????????????????# ;#?????????? | | ?????????????????????? ?????????? | | ?????????????????????#Y H ?????????? | | ?????????????????????+ #????????? | | ?????????????????????# #????????? | | ?????????????????????# #????????? | | ?????????????????????###t###????????? | | ??????????????????????? #???????????? | | ???????????????????????#????????????? | | ????????????????????????????????????? | | ????????????????????????????????????? | | ????????????????????????????????????? | | ????????????????????????????????????? | | ????????????????????????????????????? | | ????????????????????????????????????? | | ????????????????????????????????????? | | ????????????????????????????????????? | | ????????????????????????????????????? | | ????????????????????????????????????? | | ????????????????????????????????????? | | ????????????????????????????????????? | | ????????????????????????????????????? | | ????????????????????????????????????? | | ????????????????????????????????????? | +----------------------------------------------------+ Best States ------------- Heat Dissipation 45 Energy Generation 14 Energy Capacity 240 Matter Stores 178 Matter Capacity 300 Sight Range 16 Terrain Scan Density 10 Armor Coverage 225 Evasion (%) 50 Recoil Reduction 1 Item Schematics ----------------- None Robot Schematics ------------------ None Fabricated ------------ Nothing Repaired ---------- Nothing Studied --------- None Alien Tech Used ----------------- None Achievements -------------- None Challenges ------------ None Game ------ Seed RocketBraceBlasthammer Manual? 0 Play Time 00:08:48 Cumulative 40.6 hours Start 2025.12.21 @ 23:34:21 End 2025.12.21 @ 23:40:26 Sessions 1 Manual Loads 0 Difficulty Rogue Special Mode None Game No. 58 Rogue 58 Adventurer 0 Explorer 0 Win Type - Total 0 Types 0/0/0/0/0/0/0/0/0/0 Lore% 18 Gallery% 23 Achievement% 18 Wizard Run 0 Options --------- Layout 2 ASCII 1 Keyboard 0 Movement Vi Keybinds 0 Fullscreen 1 Font 16/SmallcapsGlow Map View 50x44 Zoom Use 0% Tactical HUD 1 Map Filters NONE Filters NONE Steam SD RUN: 044c43ef-7730-474e-ae45-9dc3d41a3c3e